bitfinex-derivatives/quotes_BTCF0:USTF0_20250106
["timestamp","ask_amount","ask_price","bid_price","bid_amount"]
[1736151722172,0.008,99473.0,99472.0,0.051282]
[1736151722976,0.012,99473.0,99472.0,0.051282]
[1736151723573,0.008,99473.0,99472.0,0.051282]
[1736151723879,0.011,99473.0,99472.0,0.051282]
[1736151724276,0.004,99473.0,99472.0,0.050282]
[1736151724469,0.011,99473.0,99472.0,0.06146499]
[1736151724671,0.011,99473.0,99472.0,0.66293566]
[1736151727681,0.011,99473.0,99472.0,0.42226499]
[1736151730371,0.3608,99489.0,99472.0,0.42226499]
[1736151730567,0.09037782,99492.0,99472.0,0.42226499]
[1736151730568,0.09037782,99492.0,99491.0,0.050273]
[1736151731881,0.09037782,99492.0,99491.0,0.411073]
[1736151732070,0.09037782,99503.0,99496.0,0.05027]
[1736151733076,0.09037782,99503.0,99501.0,0.050268]
[1736151733481,0.1096,99511.0,99501.0,0.050268]
[1736151736169,0.1096,99511.0,99510.0,0.050263]
[1736151736569,0.0355,99511.0,99510.0,0.050263]
[1736151736774,0.3608,99521.0,99510.0,0.050263]
[1736151736979,0.3608,99521.0,99520.0,0.050258]
[1736151737179,0.0359,99526.0,99511.0,0.06367529]
[1736151737378,0.0359,99526.0,99525.0,0.050256]
[1736151738679,0.04640475,99526.0,99525.0,0.050256]
[1736151739074,0.04940475,99526.0,99525.0,0.050256]
[1736151739977,0.0399,99526.0,99525.0,0.050256]
[1736151740177,0.0399,99526.0,99525.0,0.051256]
[1736151747782,0.090155,99526.0,99525.0,0.001]
[1736151748080,0.050258,99521.0,99520.0,0.050258]
[1736151749275,0.054258,99521.0,99520.0,0.050258]
[1736151749989,0.054258,99521.0,99520.0,0.051258]
[1736151749990,0.055258,99521.0,99520.0,0.051258]
[1736151762501,0.14563582,99521.0,99520.0,0.051258]
[1736151764187,0.055258,99521.0,99520.0,0.23106474]
[1736151765600,0.055258,99521.0,99520.0,0.051258]
[1736151781010,0.054258,99521.0,99520.0,0.051258]
[1736151784111,0.051258,99521.0,99520.0,0.051258]
[1736151784307,0.054258,99521.0,99520.0,0.051258]
[1736151785707,0.054258,99521.0,99520.0,0.001]
[1736151787212,0.304,99521.0,99511.0,0.30083834]
[1736151787418,0.411062,99512.0,99511.0,0.30083834]
[1736151787620,0.050263,99511.0,99510.0,0.24043089]
[1736151787809,0.153463,99511.0,99510.0,0.24043089]
[1736151789010,0.15208103,99511.0,99504.0,0.18027699]
[1736151789318,0.050266,99505.0,99504.0,0.18027699]
[1736151790420,0.051266,99505.0,99504.0,0.18027699]
[1736151790823,0.050266,99504.0,99503.0,0.050266]
[1736151792411,0.051266,99504.0,99503.0,0.050266]
[1736151792815,0.412066,99504.0,99503.0,0.050266]
[1736151793608,0.413066,99504.0,99503.0,0.050266]
[1736151795319,0.414066,99504.0,99503.0,0.050266]
[1736151797827,0.414066,99504.0,99501.0,0.18027699]
[1736151797828,0.050267,99502.0,99501.0,0.18027699]
[1736151799223,0.051267,99502.0,99501.0,0.18027699]
[1736151799517,0.053267,99502.0,99501.0,0.18027699]
[1736151799719,0.050268,99501.0,99500.0,0.00150743]
[1736151799919,0.050273,99491.0,99490.0,0.18027699]
[1736151800129,0.411073,99491.0,99490.0,0.18027699]
[1736151801718,0.411073,99491.0,99484.0,0.050276]
[1736151801719,0.050276,99485.0,99484.0,0.050276]
[1736151802911,0.050276,99485.0,99484.0,0.054276]
[1736151804515,0.06026891,99485.0,99484.0,0.054276]
[1736151804718,0.06026891,99485.0,99484.0,0.056276]
[1736151807625,0.06026891,99485.0,99484.0,0.006]
[1736151821133,0.06026891,99485.0,99484.0,0.056276]
[1736151823246,0.15052212,99485.0,99484.0,0.056276]
[1736151825039,0.15052212,99485.0,99484.0,0.23655299]
[1736151826341,0.06026891,99485.0,99484.0,0.056276]
[1736151840255,0.06026891,99485.0,99484.0,0.006]
[1736151841056,0.10026891,99485.0,99484.0,0.006]
[1736151841557,0.06026891,99485.0,99484.0,0.006]
[1736151842257,0.28878952,99485.0,99484.0,0.006]
[1736151843653,0.10916844,99485.0,99484.0,0.006]
[1736151850260,0.10916844,99485.0,99471.0,0.18065882]
[1736151850467,0.411082,99472.0,99471.0,0.18065882]
[1736151850665,0.411082,99472.0,99469.0,0.18065882]
[1736151850666,0.3608,99472.0,99469.0,0.18065882]
[1736151850969,0.050284,99470.0,99469.0,0.23094282]
[1736151852356,0.050284,99470.0,99469.0,0.050284]
[1736151852557,0.051284,99470.0,99469.0,0.050284]
[1736151856662,0.06161128,99470.0,99469.0,0.050284]
[1736151858474,0.001,99470.0,99469.0,0.050284]
[1736151862471,0.051284,99470.0,99469.0,0.050284]
[1736151863275,0.051284,99470.0,99462.0,0.30083834]
[1736151863276,0.050287,99463.0,99462.0,0.30083834]
[1736151864168,0.09036404,99466.0,99461.0,0.24053923]
[1736151864371,0.050288,99462.0,99461.0,0.24053923]
[1736151865665,0.050288,99462.0,99461.0,0.24253923]
[1736151866071,0.050288,99462.0,99461.0,0.002]
[1736151866779,0.050288,99462.0,99461.0,0.003]
[1736151867675,0.06050721,99462.0,99461.0,0.003]
[1736151876281,0.050297,99444.0,99443.0,0.11267574]
[1736151876587,0.771897,99444.0,99443.0,0.06232842]
[1736151876777,0.771897,99444.0,99443.0,0.02221842]
[1736151877385,0.050309,99420.0,99419.0,0.050309]
[1736151877889,0.050309,99420.0,99419.0,0.06603721]
[1736151878688,0.14058168,99420.0,99419.0,0.06603721]
[1736151878888,0.09027268,99420.0,99419.0,0.06603721]
[1736151879789,0.3608,99424.0,99423.0,0.050307]
[1736151879988,0.37067745,99424.0,99423.0,0.050307]
[1736151880181,0.37067745,99424.0,99423.0,0.06603521]
[1736151881004,0.3608,99424.0,99423.0,0.06903521]
[1736151881297,0.09027268,99427.0,99426.0,0.050306]
[1736151881490,0.09027268,99427.0,99423.0,0.06903521]
[1736151881491,0.09027268,99429.0,99428.0,0.050305]
[1736151882694,0.3608,99432.0,99431.0,0.050303]
[1736151884203,0.3608,99432.0,99431.0,0.052303]
[1736151884497,0.3608,99432.0,99431.0,0.053303]
[1736151888604,0.050301,99435.0,99434.0,0.050302]
[1736151889804,0.050301,99435.0,99434.0,0.052302]
[1736151893309,0.050301,99435.0,99434.0,0.06802817]
[1736151896605,0.411101,99435.0,99434.0,0.06802817]
[1736151897100,0.411101,99435.0,99434.0,0.01772617]
[1736151897710,0.411101,99435.0,99434.0,0.002]
[1736151898412,0.411101,99435.0,99417.0,0.05031]
[1736151898413,0.050311,99418.0,99417.0,0.05031]
[1736151898609,0.050311,99418.0,99417.0,0.06603836]
[1736151898801,0.050311,99418.0,99417.0,0.01572836]
[1736151899001,0.085311,99418.0,99417.0,0.01572836]
[1736151899711,0.08531,99418.0,99417.0,0.004]
[1736151900097,0.08631,99418.0,99417.0,0.012]
[1736151902208,0.09666041,99418.0,99417.0,0.012]
[1736151906118,0.09666041,99418.0,99417.0,0.01]
[1736151906303,0.09566041,99418.0,99417.0,0.007]
[1736151906507,0.050317,99404.0,99402.0,0.050318]
[1736151906907,0.050317,99404.0,99403.0,0.01573072]
[1736151908917,0.050317,99404.0,99403.0,0.01773072]
[1736151909422,0.050317,99404.0,99403.0,0.02173072]
[1736151910910,0.06055356,99404.0,99403.0,0.02173072]
[1736151912120,0.06055356,99404.0,99403.0,0.07204772]
[1736151914419,0.06055356,99404.0,99403.0,0.07204742]
[1736151914613,0.15083501,99404.0,99403.0,0.07204742]
[1736151916122,0.06055356,99404.0,99403.0,0.07204742]
[1736151917119,0.06055356,99404.0,99403.0,0.056317]
[1736151923322,0.09028145,99407.0,99406.0,0.050316]
[1736151924127,0.09028145,99409.0,99408.0,0.050315]
[1736151925427,0.09028145,99409.0,99408.0,0.051315]
[1736151925721,0.050313,99412.0,99411.0,0.050313]
[1736151926826,0.050313,99412.0,99411.0,0.051313]
[1736151927225,0.050313,99412.0,99411.0,0.052313]
[1736151927424,0.411113,99412.0,99411.0,0.002]
[1736151932828,0.46004725,99412.0,99411.0,0.002]
[1736151936227,0.46004725,99412.0,99411.0,0.001]
[1736151936925,0.46204725,99412.0,99411.0,0.001]
[1736151937135,0.050317,99405.0,99402.0,0.050318]
[1736151937328,0.3608,99404.0,99402.0,0.050318]
[1736151937933,0.411117,99404.0,99402.0,0.050318]
[1736151939233,0.411117,99404.0,99402.0,0.051318]
[1736151939436,0.411117,99404.0,99402.0,0.052318]
[1736151940033,0.411117,99404.0,99402.0,0.051318]
[1736151940231,0.411117,99404.0,99402.0,0.052318]
[1736151941433,0.42132664,99404.0,99402.0,0.052318]
[1736151947346,0.050317,99403.0,99402.0,0.052318]
[1736151949035,0.050317,99403.0,99402.0,0.051318]
[1736151949240,0.050317,99403.0,99402.0,0.052318]
[1736151953852,0.050317,99403.0,99402.0,0.002]
[1736151954646,0.050318,99401.0,99400.0,0.1]
[1736151954845,0.050318,99401.0,99396.0,0.07595676]
[1736151954846,0.05032,99397.0,99396.0,0.07595676]
[1736151955052,0.45112,99397.0,99396.0,0.07595676]
[1736151955258,0.45112,99397.0,99384.0,0.07595676]
[1736151955448,0.050327,99385.0,99384.0,0.07595676]
[1736151956951,0.050327,99385.0,99384.0,0.08195676]
[1736151957459,0.050327,99385.0,99384.0,0.006]
[1736151957460,0.0992688,99385.0,99384.0,0.006]
[1736151958566,0.20097414,99385.0,99384.0,0.006]
[1736151959761,0.050327,99385.0,99384.0,0.006]
[1736151961358,0.06028776,99385.0,99384.0,0.006]
[1736151961555,0.00996076,99385.0,99384.0,0.056327]
[1736151961857,0.15064714,99388.0,99387.0,0.050326]
[1736151962355,0.15064714,99388.0,99385.0,0.0707]
[1736151962356,0.3608,99390.0,99389.0,0.050324]
[1736151963765,0.3608,99390.0,99389.0,0.051324]
[1736151964767,0.3608,99390.0,99389.0,0.053324]
[1736151964974,0.45111366,99390.0,99389.0,0.053324]
[1736151969570,0.3608,99390.0,99389.0,0.053324]
[1736151971458,0.3608,99390.0,99389.0,0.003]
[1736151977865,0.40974604,99390.0,99389.0,0.003]
[1736151978372,0.46007004,99390.0,99389.0,0.003]
[1736151984670,0.18093932,99390.0,99389.0,0.003]
[1736151984876,0.20949541,99404.0,99395.0,0.050321]
[1736151985076,0.25981241,99404.0,99396.0,0.071]
[1736151985872,0.37067958,99397.0,99396.0,0.071]
[1736151986382,0.3608,99397.0,99396.0,0.071]
[1736151986580,0.3608,99397.0,99396.0,0.073]
[1736151986882,0.12059818,99398.0,99397.0,0.05032]
[1736151987479,0.0904244,99399.0,99397.0,0.05032]
[1736151988190,0.0904244,99399.0,99397.0,0.05132]
[1736151988776,0.0904244,99402.0,99397.0,0.002]
[1736151988982,0.0904244,99402.0,99401.0,0.050318]
[1736151990184,0.0904244,99406.0,99405.0,0.050316]
[1736151991581,0.0934244,99406.0,99405.0,0.050316]
[1736151991980,0.0934244,99406.0,99398.0,0.050319]
[1736151992186,0.411119,99400.0,99398.0,0.050319]
[1736151992379,0.05032,99398.0,99396.0,0.0346]
[1736151992579,0.050325,99388.0,99387.0,0.30083834]
[1736151993887,0.050325,99388.0,99387.0,0.005]
[1736151994288,0.050325,99388.0,99387.0,0.007]
[1736151994787,0.06038297,99388.0,99387.0,0.007]
[1736151997988,0.18098115,99388.0,99387.0,0.007]
[1736151999187,0.06038297,99388.0,99387.0,0.007]
[1736152002095,0.18085496,99388.0,99387.0,0.007]
[1736152003189,0.06038297,99388.0,99387.0,0.007]
[1736152007400,0.18084654,99388.0,99387.0,0.007]
[1736152008793,0.13052154,99388.0,99387.0,0.007]
[1736152008988,0.12046357,99388.0,99387.0,0.057326]
[1736152010005,0.09033914,99391.0,99387.0,0.007]
[1736152010200,0.09033914,99391.0,99390.0,0.050324]
[1736152011398,0.12046357,99396.0,99387.0,0.007]
[1736152011601,0.12046357,99395.0,99387.0,0.007]
[1736152011802,0.050325,99389.0,99387.0,0.007]
[1736152012595,0.050326,99386.0,99381.0,0.18044716]
[1736152012800,0.050327,99385.0,99381.0,0.23077516]
[1736152012994,0.050327,99385.0,99382.0,0.050328]
[1736152013604,0.050327,99385.0,99377.0,0.18044716]
[1736152013804,0.050327,99385.0,99383.0,0.050327]
[1736152014202,0.090368,99385.0,99383.0,0.050327]
[1736152015502,0.090368,99385.0,99384.0,0.050327]
[1736152015503,0.001,99385.0,99384.0,0.050327]
[1736152016100,0.090368,99388.0,99387.0,0.050326]
[1736152017209,0.090368,99389.0,99387.0,0.050326]
[1736152017410,0.090368,99389.0,99388.0,0.0373]
[1736152018500,0.3608,99391.0,99389.0,0.050324]
[1736152018698,0.3608,99391.0,99389.0,0.118124]
[1736152019201,0.12046357,99397.0,99391.0,0.050323]
[1736152019407,0.15074773,99404.0,99403.0,0.050317]
[1736152019706,0.05182446,99409.0,99408.0,0.050315]
[1736152019707,0.23252229,99409.0,99408.0,0.050315]
[1736152020302,0.18220729,99409.0,99408.0,0.050315]
[1736152020512,0.1922146,99409.0,99408.0,0.050315]
[1736152021008,0.01151677,99409.0,99408.0,0.050315]
[1736152021801,0.00150946,99409.0,99408.0,0.050315]
[1736152022205,0.00450946,99409.0,99408.0,0.050315]
[1736152023009,0.00550946,99409.0,99408.0,0.050315]
[1736152046120,0.00550946,99409.0,99408.0,0.23076216]
[1736152048111,0.00550946,99409.0,99408.0,0.050315]
[1736152049220,0.00550946,99409.0,99408.0,0.29093382]
[1736152049413,0.00550946,99409.0,99408.0,0.050315]
[1736152050420,0.004,99409.0,99408.0,0.050315]
[1736152051919,0.15094342,99416.0,99415.0,0.050311]
[1736152052117,0.15094342,99416.0,99415.0,0.411111]
[1736152052422,0.15094342,99420.0,99419.0,0.050309]
[1736152053732,0.050306,99425.0,99418.0,0.24074611]
[1736152053918,0.050306,99425.0,99424.0,0.050307]
[1736152055025,0.0100207,99429.0,99427.0,0.050305]
[1736152055212,0.050304,99430.0,99427.0,0.050305]
[1736152055622,0.050304,99430.0,99421.0,0.18047562]
[1736152055823,0.050304,99430.0,99428.0,0.050305]
[1736152056225,0.005,99429.0,99428.0,0.050305]
[1736152056917,0.051304,99430.0,99428.0,0.050305]
[1736152057220,0.06449499,99430.0,99428.0,0.050305]
[1736152057420,0.01419099,99430.0,99428.0,0.050305]
[1736152057621,0.01319099,99430.0,99428.0,0.050305]
[1736152058624,0.01019099,99430.0,99428.0,0.050305]
[1736152058825,0.050302,99433.0,99423.0,0.0321]
[1736152059021,0.050302,99433.0,99429.0,0.050304]
[1736152059432,0.050303,99432.0,99429.0,0.050304]
[1736152059827,0.050303,99432.0,99423.0,0.0321]
[1736152060022,0.050303,99432.0,99430.0,0.050303]
[1736152062426,0.055303,99432.0,99430.0,0.050303]
[1736152064030,0.051303,99432.0,99430.0,0.050303]
[1736152065332,0.001,99432.0,99430.0,0.050303]
[1736152067343,0.001,99432.0,99431.0,0.050303]
[1736152078159,0.001,99432.0,99431.0,0.2307086]
[1736152078548,0.001,99432.0,99431.0,0.1804056]
[1736152079153,0.001,99432.0,99431.0,0.1305056]
[1736152080054,0.001,99432.0,99424.0,0.3608]
[1736152080055,0.050306,99425.0,99424.0,0.3608]
[1736152080461,0.050308,99422.0,99419.0,0.050309]
[1736152081251,0.17092497,99422.0,99419.0,0.050309]
[1736152081652,0.17092497,99422.0,99421.0,0.050308]
[1736152081854,0.17792497,99422.0,99421.0,0.050308]
[1736152082152,0.12761697,99422.0,99421.0,0.050308]
[1736152082562,0.007,99422.0,99421.0,0.050308]
[1736152082953,0.004,99425.0,99422.0,0.050308]
[1736152083447,0.050306,99427.0,99422.0,0.050308]
[1736152083650,0.050306,99427.0,99423.0,0.050307]
[1736152084757,0.00986765,99427.0,99417.0,0.3379451]
[1736152084960,0.008,99427.0,99425.0,0.050306]
[1736152085562,0.009,99427.0,99426.0,0.050306]
[1736152086059,0.013,99427.0,99426.0,0.050306]
[1736152087862,0.013,99427.0,99426.0,0.051306]
[1736152088365,0.013,99427.0,99426.0,0.001]
[1736152089664,0.013,99427.0,99426.0,0.0323]
[1736152090671,0.13359822,99427.0,99426.0,0.0323]
[1736152091971,0.013,99427.0,99426.0,0.0323]
[1736152098575,0.013,99427.0,99426.0,0.001]
[1736152100573,0.13359822,99427.0,99426.0,0.001]
[1736152103373,0.013,99427.0,99426.0,0.001]
[1736152105270,0.013,99427.0,99426.0,0.0337]
[1736152106264,0.013,99427.0,99426.0,0.27444611]
[1736152107476,0.013,99427.0,99426.0,0.63524611]
[1736152108979,0.013,99427.0,99426.0,0.64524037]
[1736152109175,0.23142911,99443.0,99426.0,0.64524037]
[1736152109176,0.0101647,99442.0,99426.0,0.70449426]
[1736152109473,0.30188685,99480.0,99469.0,0.050284]
[1736152109688,0.30248686,99480.0,99474.0,0.050281]
[1736152109867,0.30188685,99480.0,99477.0,0.7216]
[1736152110073,0.01031396,99486.0,99477.0,0.7216]
[1736152110283,0.01031396,99486.0,99485.0,0.3608]
[1736152110580,0.16376993,99500.0,99485.0,0.3608]
[1736152110778,0.16376993,99500.0,99467.0,0.3608]
[1736152110779,0.1,99500.0,99490.0,0.06376993]
[1736152111073,0.1,99500.0,99476.0,0.42530568]
[1736152111074,0.1,99500.0,99491.0,0.00414901]
[1736152111275,0.1,99500.0,99490.0,0.06376993]
[1736152111480,0.1,99500.0,99491.0,0.00414367]
[1736152111682,0.105,99500.0,99490.0,0.06376993]
[1736152111882,0.105,99500.0,99496.0,0.23950664]
[1736152111883,0.11508354,99500.0,99496.0,0.23950664]
[1736152112381,0.11808354,99500.0,99491.0,0.001]
[1736152112682,0.3608,99492.0,99491.0,0.001]
[1736152112882,0.3608,99492.0,99489.0,0.31063575]
[1736152112883,0.20991636,99492.0,99489.0,0.31063575]
[1736152113084,0.0644,99491.0,99489.0,0.31063575]
[1736152113380,0.20991636,99492.0,99475.0,0.3608]
[1736152113381,0.09324255,99492.0,99475.0,0.3608]
[1736152113573,0.09324255,99492.0,99490.0,0.45964588]
[1736152113975,0.0924442,99492.0,99490.0,0.45964588]
[1736152114371,0.0924442,99492.0,99489.0,0.29916112]
[1736152115374,0.0964442,99492.0,99489.0,0.29916112]
[1736152115575,0.0974442,99492.0,99488.0,0.29916112]
[1736152115979,0.0934442,99492.0,99488.0,0.29916112]
[1736152116180,0.0306,99491.0,99488.0,0.29916112]
[1736152116383,0.0306,99491.0,99486.0,0.29916112]
[1736152116583,0.0316,99490.0,99486.0,0.29916112]
[1736152117374,0.0316,99490.0,99471.0,0.050283]
[1736152117569,0.45789074,99481.0,99471.0,0.050283]
[1736152117975,0.45789074,99481.0,99472.0,0.45969013]
[1736152118976,0.3608,99481.0,99472.0,0.45969013]
[1736152119187,0.3608,99481.0,99473.0,0.0317]
[1736152120284,0.37107609,99481.0,99473.0,0.0317]
[1736152120981,0.01027609,99481.0,99476.0,0.3608]
[1736152121188,0.12869074,99490.0,99476.0,0.3608]
[1736152121784,0.001,99481.0,99476.0,0.3608]
[1736152121974,0.001,99481.0,99475.0,0.050281]
[1736152121975,0.001,99481.0,99477.0,0.45966548]
[1736152122379,0.050279,99479.0,99477.0,0.45966548]
[1736152122588,0.54,99478.0,99477.0,0.45966548]
[1736152123079,0.050279,99479.0,99457.0,0.3608]
[1736152123383,0.09709074,99470.0,99457.0,0.3608]
[1736152123582,0.0331,99469.0,99457.0,0.3608]
[1736152124087,0.0331,99469.0,99458.0,0.45974028]
[1736152124882,0.0331,99469.0,99459.0,0.45974028]
[1736152125691,0.0331,99469.0,99460.0,0.45974028]
[1736152126581,0.0331,99469.0,99461.0,0.45974028]
[1736152127590,0.04322132,99469.0,99461.0,0.45974028]
[1736152128183,0.04322132,99469.0,99457.0,0.3608]
[1736152128184,0.09350532,99469.0,99462.0,0.45974028]
[1736152129290,0.09350532,99469.0,99463.0,0.45974028]
[1736152129494,0.09450532,99469.0,99463.0,0.45974028]
[1736152129793,0.09450532,99469.0,99464.0,0.45974028]
[1736152129991,0.050285,99467.0,99464.0,0.45974028]
[1736152130180,0.050286,99465.0,99464.0,0.45974028]
[1736152130890,0.050288,99462.0,99457.0,0.3608]
[1736152131288,0.3608,99467.0,99450.0,0.0322]
[1736152131485,0.05029,99458.0,99450.0,0.0322]
[1736152131888,0.05029,99458.0,99452.0,1.0193613]
[1736152132695,0.05029,99458.0,99453.0,0.45975783]
[1736152133697,0.09709074,99463.0,99456.0,0.35949083]
[1736152133886,0.05029,99458.0,99456.0,0.35949083]
[1736152134792,0.05029,99458.0,99457.0,0.81924866]
[1736152135496,0.05229,99458.0,99457.0,0.81924866]
[1736152135695,0.05229,99458.0,99457.0,0.45975783]
[1736152135994,0.05329,99458.0,99457.0,0.45975783]
[1736152136693,0.09709074,99463.0,99457.0,0.45975783]
[1736152137395,0.001,99458.0,99457.0,0.45975783]
[1736152137697,0.05129,99458.0,99457.0,0.45975783]
[1736152138297,0.09809074,99463.0,99457.0,0.45975783]
[1736152138491,0.10009074,99463.0,99457.0,0.45975783]
[1736152138887,0.10009074,99463.0,99458.0,0.45975783]
[1736152139088,0.09909074,99463.0,99458.0,0.45975783]
[1736152139288,0.09709074,99463.0,99458.0,0.45975783]
[1736152139889,0.001,99463.0,99460.0,0.050288]
[1736152140802,0.001,99463.0,99461.0,0.45975783]
[1736152141401,0.051287,99463.0,99461.0,0.45975783]
[1736152142197,0.051287,99463.0,99462.0,0.45975783]
[1736152142994,0.052287,99463.0,99462.0,1.01934791]
[1736152143595,0.053287,99463.0,99462.0,1.01934791]
[1736152143797,0.3608,99468.0,99462.0,1.01934791]
[1736152144000,0.3608,99468.0,99466.0,0.050285]
[1736152144198,0.411081,99476.0,99467.0,0.0311]
[1736152144404,0.3608,99476.0,99467.0,0.0311]
[1736152144605,0.050282,99474.0,99467.0,1.05044791]
[1736152145199,0.050282,99474.0,99467.0,0.59069008]
[1736152145410,0.050282,99474.0,99471.0,0.3608]
[1736152146904,0.050282,99474.0,99472.0,0.032]
[1736152156608,0.050285,99468.0,99467.0,0.3919]
[1736152157107,0.050285,99468.0,99467.0,1.41122766]
[1736152157308,0.050285,99468.0,99467.0,1.38012766]
[1736152158313,0.050285,99468.0,99467.0,0.82054266]
[1736152158507,0.39342001,99475.0,99467.0,0.82054266]
[1736152158708,0.5329,99475.0,99467.0,0.82054266]
[1736152158909,0.050285,99468.0,99467.0,0.82054266]
[1736152160316,0.050285,99468.0,99467.0,0.45974266]
[1736152161310,0.051285,99468.0,99467.0,0.45974266]
[1736152165613,0.051285,99468.0,99467.0,0.33174266]
[1736152165814,0.051285,99468.0,99467.0,0.30178179]
[1736152167420,0.191285,99468.0,99467.0,0.30178179]
[1736152168218,0.191285,99468.0,99467.0,0.29877827]
[1736152171615,0.191285,99468.0,99467.0,0.28494827]
[1736152172919,0.050289,99459.0,99458.0,0.36078566]
[1736152173125,0.130289,99459.0,99458.0,0.36078566]
[1736152173716,0.130289,99459.0,99458.0,0.30452054]
[1736152174124,0.130289,99459.0,99458.0,0.30552054]
[1736152174426,0.130289,99459.0,99458.0,0.30652054]
[1736152174930,0.130289,99459.0,99458.0,0.002]
[1736152176530,0.13828264,99459.0,99458.0,0.002]
[1736152177529,0.13828264,99459.0,99458.0,0.24242914]
[1736152178832,0.13828264,99459.0,99458.0,0.002]
[1736152181027,0.13828264,99459.0,99458.0,0.24241653]
[1736152182422,0.49908264,99459.0,99458.0,0.24241653]
[1736152183425,0.49908264,99459.0,99458.0,0.002]
[1736152184938,0.31908264,99459.0,99458.0,0.002]
[1736152185323,0.32737221,99459.0,99458.0,0.002]
[1736152185926,0.05857857,99459.0,99458.0,0.002]
[1736152186529,0.050289,99459.0,99458.0,0.3628]
[1736152189033,0.050289,99459.0,99458.0,0.81948242]
[1736152192027,0.060289,99459.0,99458.0,0.81948242]
[1736152192432,0.060289,99459.0,99458.0,0.45868242]
[1736152192834,0.060289,99459.0,99458.0,0.45719673]
[1736152195133,0.060289,99459.0,99458.0,0.30131612]
[1736152196140,0.060289,99459.0,99458.0,0.00051431]
[1736152201646,0.05029,99457.0,99456.0,0.30080181]
[1736152201843,0.050291,99456.0,99455.0,0.296246]
[1736152202047,0.200291,99456.0,99455.0,0.296246]
[1736152202648,0.200291,99456.0,99455.0,0.75278066]
[1736152203445,0.200291,99456.0,99455.0,0.75478066]
[1736152203754,0.200291,99456.0,99455.0,0.002]
[1736152204053,0.050296,99445.0,99444.0,0.36096217]
[1736152204752,0.050296,99445.0,99444.0,0.81752007]
[1736152205138,0.09709074,99454.0,99444.0,0.81752007]
[1736152205341,0.19709074,99454.0,99444.0,0.81752007]
[1736152205551,0.19709074,99454.0,99444.0,0.4565579]
[1736152206249,0.050296,99446.0,99445.0,0.4565579]
[1736152207153,0.050296,99446.0,99445.0,0.4888579]
[1736152207456,0.050296,99446.0,99445.0,0.4938579]
[1736152208658,0.050296,99446.0,99445.0,0.4968579]
[1736152211956,0.050296,99446.0,99445.0,0.85782007]
[1736152212953,0.050296,99446.0,99445.0,0.4968579]
[1736152213757,0.05889138,99446.0,99445.0,0.4968579]
[1736152216350,0.09709074,99470.0,99445.0,0.4968579]
[1736152216555,0.050287,99463.0,99462.0,0.3608]
[1736152217854,0.050287,99463.0,99462.0,0.8173579]
[1736152218255,0.051287,99463.0,99462.0,0.8173579]
[1736152221060,0.0599141,99463.0,99462.0,0.8173579]
[1736152222470,0.0096271,99463.0,99462.0,0.8173579]
[1736152222670,0.0096271,99463.0,99462.0,0.8676459]
[1736152222872,0.0096271,99463.0,99462.0,1.22849804]
[1736152223268,0.00879737,99470.0,99468.0,0.050284]
[1736152223463,0.1315226,99480.0,99471.0,0.050283]
[1736152223667,0.411076,99485.0,99477.0,0.3608]
[1736152223867,0.41975552,99485.0,99478.0,0.0322]
[1736152224067,0.36947952,99485.0,99478.0,0.0322]
[1736152224267,0.050278,99482.0,99478.0,0.0322]
[1736152225669,0.050278,99482.0,99479.0,0.4497814]
[1736152226065,0.051278,99482.0,99479.0,0.4497814]
[1736152226670,0.36999953,99485.0,99479.0,0.18003632]
[1736152226875,0.050278,99480.0,99479.0,0.18003632]
[1736152227675,0.590278,99480.0,99479.0,0.18003632]
[1736152228074,0.590278,99480.0,99456.0,0.3608]
[1736152228075,0.050281,99475.0,99474.0,0.18003632]
[1736152229071,0.050286,99466.0,99463.0,0.18003632]
[1736152230172,0.050286,99466.0,99465.0,0.3638]
[1736152230378,0.050284,99470.0,99465.0,0.3638]
[1736152230772,0.001,99466.0,99465.0,0.3618]
[1736152231474,0.051286,99466.0,99465.0,0.3618]
[1736152231675,0.051286,99466.0,99465.0,0.3608]
[1736152233574,0.051286,99466.0,99465.0,0.8098099]
[1736152234673,0.051286,99466.0,99465.0,0.66076216]
[1736152234982,0.06027024,99466.0,99465.0,0.66076216]
[1736152237972,0.06027024,99466.0,99465.0,1.10972529]
[1736152239279,0.06027024,99466.0,99465.0,0.80976313]
[1736152239472,0.06027024,99466.0,99465.0,0.41844506]
[1736152239670,0.07027024,99466.0,99465.0,0.40405587]
[1736152240271,0.07027024,99466.0,99459.0,0.30009015]
[1736152240683,0.050289,99460.0,99459.0,0.30009015]
[1736152241577,0.06027024,99466.0,99458.0,0.18010429]
[1736152241772,0.082589,99459.0,99458.0,0.18010429]
[1736152242886,0.082589,99459.0,99458.0,0.18110429]
[1736152243588,0.082589,99459.0,99458.0,0.18210429]
[1736152245083,0.082589,99459.0,99458.0,0.002]
[1736152245885,0.05029,99458.0,99455.0,0.24013905]
[1736152246089,0.050291,99456.0,99455.0,0.24013905]
[1736152247386,0.050291,99455.0,99454.0,0.24013905]
[1736152248582,0.050292,99453.0,99452.0,0.24013905]
[1736152249881,0.050295,99448.0,99447.0,0.36047247]
[1736152250282,0.3608,99460.0,99447.0,0.36047247]
[1736152250681,0.050295,99447.0,99446.0,0.72127247]
[1736152251584,0.050295,99447.0,99446.0,0.3608]
[1736152253087,0.050295,99447.0,99446.0,0.3698]
[1736152254489,0.050295,99447.0,99446.0,0.009]
[1736152254683,0.45789074,99460.0,99446.0,0.3698]
[1736152254883,0.46863992,99460.0,99446.0,0.3698]
[1736152255083,0.46863992,99460.0,99446.0,0.81089094]
[1736152255294,0.050295,99448.0,99446.0,0.81089094]
[1736152256195,0.050295,99448.0,99447.0,0.44109094]
[1736152258398,0.050295,99448.0,99447.0,0.44609094]
[1736152258898,0.050295,99448.0,99447.0,0.44909094]
[1736152259993,0.050288,99461.0,99447.0,0.44909094]
[1736152259994,0.050291,99456.0,99449.0,0.050294]
[1736152260197,0.050291,99456.0,99455.0,0.3608]